[Event "BLR-ch U20 Girls 2021"]
[Site "Minsk"]
[Date "2021.04.20"]
[Round "1.8"]
[White "Astapchyk, Darya"]
[Black "Khomich, Maryna"]
[Result "0-1"]
[ECO "B12"]
[WhiteElo "1586"]
[BlackElo "1409"]
[Annotator "NA RC"]
[PlyCount "112"]
[EventDate "2021.04.20"]
[EventType "tourn"]
[EventCountry "BLR"]
[SourceTitle "playchess.com"]
[Source "ChessBase"]
[SourceQuality "1"]
[TimeControl "40/5400+30:1800+30"]

1. e4 {[%emt 0:00:00]} c6 {[%emt 0:00:00]} 2. d4 {[%emt 0:00:02]} d5 {[%emt 0:00:00]} 3. e5 {[%emt 0:02:12]} Bf5 {[%emt 0:00:00]} 4. g4 {[%emt 0:00:39]} Bd7 {[%emt 0:06:53]} 5. Bg2 {[%emt 0:06:56]} e6 {[%emt 0:01:42]} 6. Ne2 {[%emt 0:01:41]} Ne7 {[%emt 0:05:06]} 7. Ng3 {[%emt 0:01:01]} c5 {[%emt 0:01:00]} 8. c3 {[%emt 0:00:49]} Bb5 {[%emt 0:05:25]} 9. Be3 {[%emt 0:11:29]} Nec6 {[%emt 0:03:51]} 10. Nd2 {[%emt 0:05:24]} cxd4 {[%emt 0:02:56]} 11. cxd4 {[%emt 0:00:13]} Nb4 {[%emt 0:01:32]} 12. Bf1 {[%emt 0:10:01]} Qa5 {[%emt 0:07:30]} 13. a3 {[%emt 0:10:12]} Nd3+ {[%emt 0:02:11]} 14. Bxd3 {[%emt 0:00:07]} Bxd3 {[%emt 0:00:04]} 15. b4 {[%emt 0:01:10]} Qb5 {[%emt 0:03:21]} 16. Qb3 {[%emt 0:11:06]} Bc4 {[%emt 0:19:08]} 17. Nxc4 {[%emt 0:01:58]} dxc4 {[%emt 0:00:06]} 18. Qc2 {[%emt 0:01:51]} a5 {[%emt 0:06:21]} 19. bxa5 {[%emt 0:13:14]} Qxa5+ {[%emt 0:00:07]} 20. Bd2 {[%emt 0:04:26]} Qd5 {[%emt 0:01:20]} 21. Qc3 {[%emt 0:00:54]} Nc6 {[%emt 0:05:37]} 22. Be3 {[%emt 0:04:52]} h5 {[%emt 0:08:50]} 23. gxh5 {[%emt 0:03:13]} Rxh5 {[%emt 0:00:14]} 24. Ke2 {[%emt 0:00:32]} Rh4 {[%emt 0:01:25]} 25. Rhd1 {[%emt 0:06:33]} Rxh2 {[%emt 0:00:33]} 26. Nf1 {[%emt 0:00:38]} Rh1 {[%emt 0:01:51]} 27. Nd2 {[%emt 0:01:01]} Rxd1 {[%emt 0:00:57]} 28. Rxd1 {[%emt 0:00:57]} Rxa3 {[%emt 0:00:29]} 29. Qxc4 {[%emt 0:00:02]} b5 {[%emt 0:07:29]} 30. Qxd5 {[%emt 0:00:57]} exd5 {[%emt 0:00:05]} 31. Rb1 {[%emt 0:00:33]} b4 {[%emt 0:02:03]} 32. Nb3 {[%emt 0:00:36]} Kd7 {[%emt 0:01:18]} 33. f4 {[%emt 0:00:28]} g6 {[%emt 0:01:38]} 34. Rb2 {[%emt 0:00:18]} Kc7 {[%emt 0:02:44]} 35. Kd2 {[%emt 0:00:15]} Kb6 {[%emt 0:00:37]} 36. Kc2 {[%emt 0:00:41]} Na5 {[%emt 0:02:15]} 37. Nxa5 {[%emt 0:00:32]} Rxe3 {[%emt 0:00:09]} 38. Nb3 {[%emt 0:00:49]} Rf3 {[%emt 0:00:42]} 39. Ra2 {[%emt 0:00:22]} Rf2+ {[%emt 0:00:48]} 40. Kb1 {[%emt 0:00:00]} Rxf4 {[%emt 0:00:00]} 41. Ra8 {[%emt 0:03:12]} Be7 {[%emt 0:03:12]} 42. Re8 {[%emt 0:01:17]} Rf1+ {[%emt 0:07:43]} 43. Kc2 {[%emt 0:03:34]} Rf2+ {[%emt 0:00:08]} 44. Kb1 {[%emt 0:00:16]} Bh4 {[%emt 0:09:50]} 45. Rb8+ {[%emt 0:02:04]} Kc7 {[%emt 0:00:18]} 46. Rxb4 {[%emt 0:00:38]} g5 {[%emt 0:00:54]} 47. Ra4 {[%emt 0:19:41]} g4 {[%emt 0:01:05]} 48. Ra8 {[%emt 0:00:33]} g3 {[%emt 0:00:34]} 49. Rg8 {[%emt 0:00:08]} g2 {[%emt 0:00:07]} 50. Nc1 {[%emt 0:00:06]} Be7 {[%emt 0:00:44]} 51. Rg7 {[%emt 0:02:28]} Kd7 {[%emt 0:00:14]} 52. Rg3 {[%emt 0:02:07]} Ba3 {[%emt 0:00:31]} 53. Nb3 {[%emt 0:00:40]} Bf8 {[%emt 0:00:52]} 54. Nc1 {[%emt 0:00:53]} Bh6 {[%emt 0:00:07]} 55. Rg4 {[%emt 0:00:33]} Bxc1 {[%emt 0:00:17]} 56. Kxc1 {[%emt 0:00:05]} Rf1+ {[%emt 0:00:06]} 0-1

[Event "BLR-ch U20 Girls 2021"]
[Site "Minsk"]
[Date "2021.04.20"]
[Round "3.6"]
[White "Halouchyts, Karalina"]
[Black "Poliakova, Varvara"]
[Result "1-0"]
[ECO "C31"]
[WhiteElo "1765"]
[BlackElo "1918"]
[Annotator "RC"]
[PlyCount "55"]
[EventDate "2021.04.20"]
[EventType "tourn"]
[EventCountry "BLR"]
[SourceTitle "playchess.com"]
[Source "ChessBase"]
[SourceQuality "1"]
[TimeControl "40/5400+30:1800+30"]

1. e4 {[%emt 0:00:00]} e5 {[%emt 0:00:00]} 2. f4 {[%emt 0:00:00]} d5 {[%emt 0:00:31]} 3. exd5 {[%emt 0:00:00]} c6 {[%emt 0:00:31]} 4. Qe2 {[%emt 0:00:24]} cxd5 {[%emt 0:00:31]} 5. fxe5 {[%emt 0:00:06]} Nc6 {[%emt 0:01:48]} 6. Nf3 {[%emt 0:00:06]} d4 {[%emt 0:03:09]} 7. Qe4 {[%emt 0:01:14]} Nge7 {[%emt 0:02:10]} 8. Bc4 {[%emt 0:12:35]} Bf5 {[%emt 0:04:01]} 9. Qf4 {[%emt 0:02:00]} h6 {[%emt 0:04:47]} 10. d3 {[%emt 0:10:34]} Qd7 {[%emt 0:05:44]} 11. O-O {[%emt 0:05:38]} Ng6 {[%emt 0:04:58]} 12. Qg3 {[%emt 0:03:37]} Be6 {[%emt 0:02:49]} 13. Nbd2 {[%emt 0:15:21]} Rc8 {[%emt 0:04:58]} 14. a4 {[%emt 0:03:48]} a6 {[%emt 0:02:14]} 15. Nb3 {[%emt 0:05:22]} Rd8 {[%emt 0:06:43]} 16. h4 {[%emt 0:06:00]} Bxc4 {[%emt 0:04:32]} 17. dxc4 {[%emt 0:00:09]} Qe6 {[%emt 0:01:23]} 18. h5 {[%emt 0:02:43]} Ngxe5 {[%emt 0:05:43]} 19. Nxe5 {[%emt 0:01:13]} Nxe5 {[%emt 0:00:04]} 20. Bf4 {[%emt 0:01:39]} f6 {[%emt 0:02:23]} 21. Bxe5 {[%emt 0:09:18]} fxe5 {[%emt 0:00:02]} 22. Rae1 {[%emt 0:00:07]} e4 {[%emt 0:08:38]} 23. Rf4 {[%emt 0:05:52]} e3 {[%emt 0:01:43]} 24. Nxd4 {[%emt 0:01:10]} Qb6 {[%emt 0:00:57]} 25. Rxe3+ {[%emt 0:00:35]} Kd7 {[%emt 0:00:02]} 26. a5 {[%emt 0:05:05]} Qxb2 {[%emt 0:01:28]} 27. Rf7+ {[%emt 0:00:22]} Kc8 {[%emt 0:00:07]} 28. Qc7# {[%emt 0:00:11]} 1-0

[Event "BLR-ch U20 Girls 2021"]
[Site "Minsk"]
[Date "2021.04.20"]
[Round "4.7"]
[White "Poliakova, Varvara"]
[Black "Astapchyk, Darya"]
[Result "1-0"]
[ECO "C56"]
[WhiteElo "1918"]
[BlackElo "1586"]
[Annotator "RC"]
[PlyCount "43"]
[EventDate "2021.04.20"]
[EventType "tourn"]
[EventCountry "BLR"]
[SourceTitle "playchess.com"]
[Source "ChessBase"]
[SourceQuality "1"]
[TimeControl "40/5400+30:1800+30"]

1. e4 {[%emt 0:00:00]} e5 {[%emt 0:00:00]} 2. Nf3 {[%emt 0:00:00]} Nc6 {[%emt 0:00:00]} 3. d4 {[%emt 0:01:08]} exd4 {[%emt 0:00:09]} 4. Bc4 {[%emt 0:00:08]} Nf6 {[%emt 0:00:09]} 5. e5 {[%emt 0:00:28]} d5 {[%emt 0:00:07]} 6. Bb5 {[%emt 0:00:04]} Ne4 {[%emt 0:00:08]} 7. O-O {[%emt 0:00:52]} Bd7 {[%emt 0:01:32]} 8. Bxc6 {[%emt 0:00:44]} bxc6 {[%emt 0:00:10]} 9. Nxd4 {[%emt 0:00:18]} Bc5 {[%emt 0:00:17]} 10. c3 {[%emt 0:02:28]} O-O {[%emt 0:00:19]} 11. Nd2 {[%emt 0:02:27]} Nxd2 {[%emt 0:01:21]} 12. Qxd2 {[%emt 0:02:14]} Re8 {[%emt 0:03:48]} 13. Re1 {[%emt 0:00:59]} f6 {[%emt 0:08:58]} 14. e6 {[%emt 0:04:36]} Bxd4 {[%emt 0:01:47]} 15. exd7 {[%emt 0:00:29]} Rxe1+ {[%emt 0:00:10]} 16. Qxe1 {[%emt 0:00:03]} Be5 {[%emt 0:00:19]} 17. f4 {[%emt 0:00:25]} Bd6 {[%emt 0:00:12]} 18. Qe6+ {[%emt 0:00:32]} Kf8 {[%emt 0:00:16]} 19. Qh3 {[%emt 0:07:52]} h6 {[%emt 0:18:31]} 20. Be3 {[%emt 0:02:13]} Qe7 {[%emt 0:06:03]} 21. Re1 {[%emt 0:02:46]} Bxf4 {[%emt 0:02:31]} 22. Bf2 {[%emt 0:02:00]} 1-0

[Event "BLR-ch U20 Girls 2021"]
[Site "Minsk"]
[Date "2021.04.20"]
[Round "4.8"]
[White "Liashkevich, Lizaveta"]
[Black "Halouchyts, Karalina"]
[Result "0-1"]
[ECO "E84"]
[WhiteElo "1401"]
[BlackElo "1765"]
[Annotator "NA RC"]
[PlyCount "92"]
[EventDate "2021.04.20"]
[EventType "tourn"]
[EventCountry "BLR"]
[SourceTitle "playchess.com"]
[Source "ChessBase"]
[SourceQuality "1"]
[TimeControl "40/5400+30:1800+30"]

1. d4 {[%emt 0:00:00]} Nf6 {[%emt 0:00:00]} 2. c4 {[%emt 0:00:00]} g6 {[%emt 0:00:00]} 3. Nc3 {[%emt 0:00:00]} Bg7 {[%emt 0:00:00]} 4. e4 {[%emt 0:00:10]} d6 {[%emt 0:00:00]} 5. f3 {[%emt 0:00:27]} O-O {[%emt 0:00:00]} 6. Be3 {[%emt 0:00:20]} Nc6 {[%emt 0:00:09]} 7. Qd2 {[%emt 0:00:33]} a6 {[%emt 0:00:08]} 8. Nge2 {[%emt 0:13:21]} Rb8 {[%emt 0:00:13]} 9. Nc1 {[%emt 0:05:18]} e5 {[%emt 0:00:20]} 10. d5 {[%emt 0:00:18]} Nd4 {[%emt 0:00:10]} 11. Nb3 {[%emt 0:08:52]} Nxb3 {[%emt 0:00:10]} 12. axb3 {[%emt 0:00:06]} c5 {[%emt 0:00:07]} 13. Be2 {[%emt 0:02:15]} Ne8 {[%emt 0:04:46]} 14. O-O {[%emt 0:09:57]} f5 {[%emt 0:07:29]} 15. f4 {[%emt 0:05:04]} Nc7 {[%emt 0:07:23]} 16. fxe5 {[%emt 0:06:11]} Bxe5 {[%emt 0:00:45]} 17. Bg5 {[%emt 0:10:46]} Qe8 {[%emt 0:02:17]} 18. Bd3 {[%emt 0:07:22]} b5 {[%emt 0:11:06]} 19. Rae1 {[%emt 0:04:22]} bxc4 {[%emt 0:20:36]} 20. bxc4 {[%emt 0:00:32]} Na8 {[%emt 0:21:37]} 21. Kh1 {[%emt 0:10:01]} Nb6 {[%emt 0:01:25]} 22. Bh6 {[%emt 0:02:02]} Rf7 {[%emt 0:00:47]} 23. exf5 {[%emt 0:00:42]} Bxf5 {[%emt 0:00:11]} 24. Bxf5 {[%emt 0:01:00]} Rxf5 {[%emt 0:03:31]} 25. Qd3 {[%emt 0:11:02]} Qd7 {[%emt 0:08:57]} 26. b3 {[%emt 0:00:45]} Qf7 {[%emt 0:04:22]} 27. Ne4 {[%emt 0:00:40]} Nd7 {[%emt 0:01:52]} 28. Ng5 {[%emt 0:00:23]} Qf6 {[%emt 0:00:51]} 29. g4 {[%emt 0:00:38]} Rf2 {[%emt 0:04:38]} 30. h3 {[%emt 0:00:42]} Qf4 {[%emt 0:00:31]} 31. Rxf2 {[%emt 0:00:48]} Qxf2 {[%emt 0:00:11]} 32. Nf3 {[%emt 0:00:42]} Qg3 {[%emt 0:00:46]} 33. Qe3 {[%emt 0:00:39]} Qxh3+ {[%emt 0:00:22]} 34. Kg1 {[%emt 0:00:03]} Qxg4+ {[%emt 0:00:37]} 35. Kh1 {[%emt 0:00:22]} Re8 {[%emt 0:00:38]} 36. Bf4 {[%emt 0:00:43]} Rf8 {[%emt 0:00:28]} 37. Nxe5 {[%emt 0:00:49]} dxe5 {[%emt 0:00:29]} 38. Bxe5 {[%emt 0:00:29]} Rf3 {[%emt 0:00:29]} 39. Qe4 {[%emt 0:00:32]} Nxe5 {[%emt 0:00:35]} 40. Qxg4 {[%emt 0:00:00]} Nxg4 {[%emt 0:00:00]} 41. b4 {[%emt 0:02:16]} cxb4 {[%emt 0:01:57]} 42. c5 {[%emt 0:00:04]} Nf6 {[%emt 0:00:35]} 43. d6 {[%emt 0:02:46]} Rc3 {[%emt 0:00:38]} 44. Re6 {[%emt 0:02:12]} Kf7 {[%emt 0:00:58]} 45. Re7+ {[%emt 0:00:44]} Kf8 {[%emt 0:00:15]} 46. Re6 {[%emt 0:00:08]} Nd7 {[%emt 0:00:18]} 0-1

[Event "BLR-ch U20 Girls 2021"]
[Site "Minsk"]
[Date "2021.04.20"]
[Round "5.6"]
[White "Astapchyk, Darya"]
[Black "Liashkevich, Lizaveta"]
[Result "0-1"]
[ECO "B13"]
[WhiteElo "1586"]
[BlackElo "1401"]
[Annotator "NA RC"]
[PlyCount "96"]
[EventDate "2021.04.20"]
[EventType "tourn"]
[EventCountry "BLR"]
[SourceTitle "playchess.com"]
[Source "ChessBase"]
[SourceQuality "1"]
[TimeControl "40/5400+30:1800+30"]

1. d4 {[%emt 0:00:00]} d5 {[%emt 0:00:00]} 2. Nc3 {[%emt 0:00:00]} Nf6 {[%emt 0:00:00]} 3. Bf4 {[%emt 0:00:05]} c5 {[%emt 0:03:36]} 4. e3 {[%emt 0:00:29]} cxd4 {[%emt 0:00:27]} 5. exd4 {[%emt 0:00:08]} a6 {[%emt 0:00:11]} 6. Nf3 {[%emt 0:03:08]} Bg4 {[%emt 0:02:02]} 7. h3 {[%emt 0:02:49]} Bxf3 {[%emt 0:03:20]} 8. Qxf3 {[%emt 0:00:15]} e6 {[%emt 0:00:34]} 9. O-O-O {[%emt 0:05:19]} Nc6 {[%emt 0:02:05]} 10. g4 {[%emt 0:02:26]} Bd6 {[%emt 0:03:31]} 11. Bg5 {[%emt 0:04:51]} Be7 {[%emt 0:00:39]} 12. Bg2 {[%emt 0:01:03]} Qb6 {[%emt 0:02:02]} 13. Qe3 {[%emt 0:03:12]} O-O-O {[%emt 0:06:21]} 14. Rhe1 {[%emt 0:09:44]} h6 {[%emt 0:02:52]} 15. Bf4 {[%emt 0:03:41]} g5 {[%emt 0:09:35]} 16. Bg3 {[%emt 0:03:13]} Ne8 {[%emt 0:05:43]} 17. Ne2 {[%emt 0:10:28]} Nd6 {[%emt 0:03:15]} 18. Qb3 {[%emt 0:08:48]} Qa7 {[%emt 0:06:53]} 19. f4 {[%emt 0:03:57]} gxf4 {[%emt 0:08:23]} 20. Bxf4 {[%emt 0:00:30]} Nc4 {[%emt 0:01:47]} 21. c3 {[%emt 0:02:15]} N6a5 {[%emt 0:02:43]} 22. Qc2 {[%emt 0:02:20]} b5 {[%emt 0:04:04]} 23. b3 {[%emt 0:12:53]} Ba3+ {[%emt 0:10:30]} 24. Kb1 {[%emt 0:00:08]} Nb2 {[%emt 0:05:28]} 25. Rd2 {[%emt 0:01:58]} Kd7 {[%emt 0:01:14]} 26. Nc1 {[%emt 0:04:06]} b4 {[%emt 0:03:02]} 27. Nd3 {[%emt 0:01:37]} bxc3 {[%emt 0:02:37]} 28. Qxc3 {[%emt 0:00:43]} Nxd3 {[%emt 0:00:15]} 29. Rxd3 {[%emt 0:01:11]} Qb6 {[%emt 0:02:55]} 30. Red1 {[%emt 0:04:43]} Rc8 {[%emt 0:00:34]} 31. Qe1 {[%emt 0:00:52]} Nc4 {[%emt 0:01:12]} 32. Be5 {[%emt 0:07:11]} Rhf8 {[%emt 0:05:03]} 33. Bg7 {[%emt 0:01:04]} Rg8 {[%emt 0:00:05]} 34. Bxh6 {[%emt 0:00:07]} Nb2 {[%emt 0:00:38]} 35. Qf1 {[%emt 0:00:11]} Ke8 {[%emt 0:01:59]} 36. Rf3 {[%emt 0:01:00]} Nxd1 {[%emt 0:00:45]} 37. Qxd1 {[%emt 0:00:22]} e5 {[%emt 0:00:29]} 38. Be3 {[%emt 0:00:56]} exd4 {[%emt 0:00:56]} 39. Bd2 {[%emt 0:00:40]} Rg6 {[%emt 0:00:46]} 40. Rf1 {[%emt 0:00:00]} Rgc6 {[%emt 0:00:00]} 41. Qe2+ {[%emt 0:02:43]} Re6 {[%emt 0:07:50]} 42. Qf3 {[%emt 0:00:32]} Qc7 {[%emt 0:01:31]} 43. Qd3 {[%emt 0:02:34]} Rc6 {[%emt 0:07:06]} 44. Re1+ {[%emt 0:03:00]} Kf8 {[%emt 0:00:12]} 45. Qf1 {[%emt 0:00:18]} Kg8 {[%emt 0:08:10]} 46. Bxd5 {[%emt 0:05:49]} Rc2 {[%emt 0:03:53]} 47. Bg5 {[%emt 0:08:01]} d3 {[%emt 0:02:39]} 48. Bc4 {[%emt 0:02:22]} Rxc4 {[%emt 0:00:47]} 0-1

[Event "BLR-ch U20 Girls 2021"]
[Site "Minsk"]
[Date "2021.04.21"]
[Round "6.5"]
[White "Tarasenka, Aliaksandra"]
[Black "Norman, Kseniya"]
[Result "1-0"]
[ECO "A40"]
[WhiteElo "1966"]
[BlackElo "1915"]
[Annotator "NA"]
[PlyCount "79"]
[EventDate "2021.04.20"]
[EventType "tourn"]
[EventCountry "BLR"]
[SourceTitle "playchess.com"]
[Source "ChessBase"]
[SourceQuality "1"]
[TimeControl "40/5400+30:1800+30"]

1. d4 {[%emt 0:00:00]} g6 {[%emt 0:00:57]} 2. c4 {[%emt 0:00:00]} Bg7 {[%emt 0:00:08]} 3. Nc3 {[%emt 0:00:08]} c5 {[%emt 0:00:46]} 4. d5 {[%emt 0:00:17]} Bxc3+ {[%emt 0:01:01]} 5. bxc3 {[%emt 0:00:05]} f5 {[%emt 0:00:08]} 6. e4 {[%emt 0:00:38]} fxe4 {[%emt 0:02:05]} 7. f3 {[%emt 0:00:42]} Nf6 {[%emt 0:02:03]} 8. fxe4 {[%emt 0:00:38]} d6 {[%emt 0:02:30]} 9. Bd3 {[%emt 0:00:21]} Qa5 {[%emt 0:07:16]} 10. Qc2 {[%emt 0:02:41]} Bd7 {[%emt 0:04:43]} 11. Rb1 {[%emt 0:11:34]} Ba4 {[%emt 0:10:40]} 12. Qe2 {[%emt 0:06:23]} Nbd7 {[%emt 0:04:46]} 13. Nf3 {[%emt 0:07:15]} Ne5 {[%emt 0:08:00]} 14. O-O {[%emt 0:08:52]} O-O-O {[%emt 0:05:06]} 15. Nxe5 {[%emt 0:12:12]} dxe5 {[%emt 0:00:03]} 16. Qb2 {[%emt 0:01:46]} b6 {[%emt 0:08:18]} 17. Bh6 {[%emt 0:07:23]} Rhg8 {[%emt 0:03:43]} 18. Qd2 {[%emt 0:05:16]} Rd6 {[%emt 0:13:43]} 19. Rbc1 {[%emt 0:08:16]} b5 {[%emt 0:08:29]} 20. Qg5 {[%emt 0:04:28]} bxc4 {[%emt 0:01:56]} 21. Bxc4 {[%emt 0:00:37]} Qc7 {[%emt 0:04:21]} 22. Qxe5 {[%emt 0:01:20]} Ng4 {[%emt 0:04:38]} 23. Qg5 {[%emt 0:01:26]} Nxh6 {[%emt 0:02:54]} 24. Qxh6 {[%emt 0:00:06]} g5 {[%emt 0:01:40]} 25. Qxh7 {[%emt 0:01:47]} Re8 {[%emt 0:01:43]} 26. Qf5+ {[%emt 0:03:16]} Bd7 {[%emt 0:00:35]} 27. Qxg5 {[%emt 0:01:03]} Rb6 {[%emt 0:00:37]} 28. Qf4 {[%emt 0:02:39]} e5 {[%emt 0:00:36]} 29. Qf7 {[%emt 0:03:23]} Rh8 {[%emt 0:00:19]} 30. Qg7 {[%emt 0:01:44]} Rh5 {[%emt 0:00:43]} 31. Be2 {[%emt 0:01:22]} Rh4 {[%emt 0:00:19]} 32. Rf8+ {[%emt 0:00:30]} Kb7 {[%emt 0:00:01]} 33. Rf7 {[%emt 0:02:54]} Kc8 {[%emt 0:00:47]} 34. Qf8+ {[%emt 0:02:19]} Kb7 {[%emt 0:00:20]} 35. Qe7 {[%emt 0:00:25]} Rf4 {[%emt 0:00:15]} 36. Rxf4 {[%emt 0:00:42]} exf4 {[%emt 0:00:02]} 37. e5 {[%emt 0:00:24]} Rb2 {[%emt 0:01:04]} 38. d6 {[%emt 0:00:42]} Qc8 {[%emt 0:00:57]} 39. e6 {[%emt 0:00:28]} Rxe2 {[%emt 0:00:23]} 40. Qxd7+ {[%emt 0:00:00]} 1-0

[Event "BLR-ch U20 Girls 2021"]
[Site "Minsk"]
[Date "2021.04.21"]
[Round "6.6"]
[White "Poliakova, Varvara"]
[Black "Zeliantsova, Kseniya"]
[Result "1/2-1/2"]
[ECO "B70"]
[WhiteElo "1918"]
[BlackElo "2017"]
[Annotator "ChessBase"]
[PlyCount "170"]
[EventDate "2021.04.20"]
[EventType "tourn"]
[EventCountry "BLR"]
[SourceTitle "playchess.com"]
[Source "ChessBase"]
[SourceQuality "1"]
[TimeControl "40/5400+30:1800+30"]

1. e4 {[%emt 0:00:38]} c5 {[%emt 0:00:00]} 2. Nf3 {[%emt 0:00:25]} Nc6 {[%emt 0:00:00]} 3. d4 {[%emt 0:01:23]} cxd4 {[%emt 0:00:00]} 4. Nxd4 {[%emt 0:00:03]} g6 {[%emt 0:00:00]} 5. Nc3 {[%emt 0:00:04]} Bg7 {[%emt 0:00:00]} 6. Nb3 {[%emt 0:00:04]} Nf6 {[%emt 0:00:23]} 7. Be2 {[%emt 0:00:28]} d6 {[%emt 0:00:19]} 8. O-O {[%emt 0:00:26]} O-O {[%emt 0:00:19]} 9. Re1 {[%emt 0:00:36]} Be6 {[%emt 0:01:45]} 10. Bf1 {[%emt 0:01:01]} Rc8 {[%emt 0:00:47]} 11. Bg5 {[%emt 0:01:53]} h6 {[%emt 0:02:02]} 12. Bh4 {[%emt 0:00:19]} Ne5 {[%emt 0:03:06]} 13. Nd5 {[%emt 0:02:31]} Bxd5 {[%emt 0:04:25]} 14. exd5 {[%emt 0:00:21]} Qc7 {[%emt 0:08:09]} 15. c3 {[%emt 0:01:46]} a5 {[%emt 0:07:50]} 16. a4 {[%emt 0:02:44]} Qb6 {[%emt 0:02:33]} 17. Bb5 {[%emt 0:00:53]} Rc7 {[%emt 0:13:08]} 18. h3 {[%emt 0:01:18]} Nh5 {[%emt 0:06:00]} 19. Kh1 {[%emt 0:13:10]} Nf4 {[%emt 0:10:05]} 20. Bg3 {[%emt 0:15:01]} g5 {[%emt 0:03:00]} 21. Bxf4 {[%emt 0:12:13]} gxf4 {[%emt 0:00:16]} 22. Nd4 {[%emt 0:00:32]} Qc5 {[%emt 0:04:03]} 23. Qd2 {[%emt 0:05:57]} Qxd5 {[%emt 0:05:37]} 24. Qxf4 {[%emt 0:00:46]} Ng6 {[%emt 0:01:16]} 25. Qf3 {[%emt 0:08:00]} Qxf3 {[%emt 0:02:25]} 26. Nxf3 {[%emt 0:00:02]} d5 {[%emt 0:03:58]} 27. Rad1 {[%emt 0:03:24]} Rd8 {[%emt 0:01:50]} 28. Rd2 {[%emt 0:01:51]} e5 {[%emt 0:03:57]} 29. Bd3 {[%emt 0:03:34]} Re7 {[%emt 0:02:34]} 30. Bxg6 {[%emt 0:01:03]} fxg6 {[%emt 0:00:05]} 31. Rde2 {[%emt 0:01:28]} g5 {[%emt 0:05:17]} 32. Kg1 {[%emt 0:01:34]} Rde8 {[%emt 0:00:35]} 33. Nd4 {[%emt 0:01:36]} Rf8 {[%emt 0:01:14]} 34. g4 {[%emt 0:02:29]} e4 {[%emt 0:04:18]} 35. Nf5 {[%emt 0:00:45]} Rd7 {[%emt 0:01:26]} 36. Rd1 {[%emt 0:00:25]} Rfd8 {[%emt 0:00:15]} 37. Red2 {[%emt 0:00:35]} Kf7 {[%emt 0:00:46]} 38. f3 {[%emt 0:02:00]} exf3 {[%emt 0:00:54]} 39. Kf2 {[%emt 0:00:35]} Bf8 {[%emt 0:00:48]} 40. Kxf3 {[%emt 0:00:00]} Kf6 {[%emt 0:00:00]} 41. Re2 {[%emt 0:03:11]} Rc7 {[%emt 0:13:05]} 42. Rde1 {[%emt 0:03:05]} Rc6 {[%emt 0:02:28]} 43. Nd4 {[%emt 0:01:02]} Rcd6 {[%emt 0:00:06]} 44. Re5 {[%emt 0:05:46]} Bg7 {[%emt 0:07:36]} 45. Nf5 {[%emt 0:03:05]} Rb6 {[%emt 0:00:42]} 46. R1e2 {[%emt 0:03:54]} Bf8 {[%emt 0:01:59]} 47. Nd4 {[%emt 0:02:46]} Rdd6 {[%emt 0:02:39]} 48. Re8 {[%emt 0:00:54]} Kf7 {[%emt 0:00:10]} 49. Ra8 {[%emt 0:01:59]} Ra6 {[%emt 0:01:25]} 50. Rc8 {[%emt 0:00:10]} Rd7 {[%emt 0:00:05]} 51. Nf5 {[%emt 0:01:16]} Bg7 {[%emt 0:01:58]} 52. Rce8 {[%emt 0:00:21]} Bf8 {[%emt 0:00:17]} 53. R8e5 {[%emt 0:00:31]} Rb6 {[%emt 0:01:13]} 54. Kg2 {[%emt 0:01:25]} Kf6 {[%emt 0:00:56]} 55. Kf1 {[%emt 0:01:48]} Rxb2 {[%emt 0:01:18]} 56. Re6+ {[%emt 0:00:02]} Kf7 {[%emt 0:00:05]} 57. Nxh6+ {[%emt 0:01:23]} Bxh6 {[%emt 0:00:07]} 58. Rxh6 {[%emt 0:00:05]} Rxe2 {[%emt 0:00:26]} 59. Kxe2 {[%emt 0:00:02]} Re7+ {[%emt 0:01:15]} 60. Kd3 {[%emt 0:00:08]} Re4 {[%emt 0:00:05]} 61. Rd6 {[%emt 0:01:19]} Rxa4 {[%emt 0:00:22]} 62. Rxd5 {[%emt 0:00:14]} Kf6 {[%emt 0:00:36]} 63. Rf5+ {[%emt 0:00:26]} Kg6 {[%emt 0:00:08]} 64. Rb5 {[%emt 0:00:17]} Rf4 {[%emt 0:01:58]} 65. Rb6+ {[%emt 0:00:36]} Rf6 {[%emt 0:01:20]} 66. Rxb7 {[%emt 0:02:07]} Rf3+ {[%emt 0:00:15]} 67. Kd4 {[%emt 0:00:17]} Rxh3 {[%emt 0:00:12]} 68. c4 {[%emt 0:01:11]} Rg3 {[%emt 0:00:56]} 69. c5 {[%emt 0:00:23]} Rxg4+ {[%emt 0:00:05]} 70. Kd5 {[%emt 0:00:04]} Rg1 {[%emt 0:00:51]} 71. c6 {[%emt 0:00:41]} Rd1+ {[%emt 0:00:05]} 72. Ke6 {[%emt 0:02:31]} Rc1 {[%emt 0:00:05]} 73. Kd6 {[%emt 0:03:37]} Kh5 {[%emt 0:00:35]} 74. Rb5 {[%emt 0:00:37]} a4 {[%emt 0:01:44]} 75. c7 {[%emt 0:02:34]} a3 {[%emt 0:00:11]} 76. Ra5 {[%emt 0:00:44]} Kh4 {[%emt 0:00:27]} 77. Rxa3 {[%emt 0:00:14]} g4 {[%emt 0:00:06]} 78. Ra8 {[%emt 0:04:26]} g3 {[%emt 0:02:48]} 79. Rh8+ {[%emt 0:00:25]} Kg4 {[%emt 0:00:03]} 80. c8=Q+ {[%emt 0:00:09]} Rxc8 {[%emt 0:00:03]} 81. Rxc8 {[%emt 0:00:04]} g2 {[%emt 0:00:44]} 82. Ke5 {[%emt 0:00:48]} Kf3 {[%emt 0:00:19]} 83. Rf8+ {[%emt 0:00:43]} Ke2 {[%emt 0:00:04]} 84. Rg8 {[%emt 0:00:03]} Kf2 {[%emt 0:00:03]} 85. Rxg2+ {[%emt 0:00:07]} Kxg2 {[%emt 0:00:04]} 1/2-1/2